fUST/lending_fUST_20251114
["ID","MTS","AMOUNT","RATE_DAILY","PERIOD"]
[393875656,1763060961092,-536.06220246,0.00041155,7]
[393875657,1763060961115,-536.06220246,0.00041155,7]
[393875658,1763060961140,-536.06220246,0.00041155,7]
[393875659,1763060961165,-536.06220246,0.00041155,7]
[393875660,1763060961189,-536.06220246,0.00041155,7]
[393875661,1763060961215,-536.06220246,0.00041155,7]
[393875662,1763060961242,-536.06220246,0.00041155,7]
[393875663,1763060961265,-536.06220246,0.00041155,7]
[393875664,1763060961289,-536.06220246,0.00041155,7]
[393875665,1763060961313,-536.06220246,0.00041155,7]
[393875666,1763060961337,-536.06220246,0.00041155,7]
[393875667,1763060961360,-536.06220246,0.00041155,7]
[393875668,1763060961384,-536.06220246,0.00041155,7]
[393875669,1763060961408,-536.06220246,0.00041155,7]
[393875670,1763060961432,-536.06220246,0.00041155,7]
[393875671,1763060961461,-536.06220248,0.00041155,7]
[393875672,1763060961485,-536.06220248,0.00041155,7]
[393875673,1763060961507,-536.06220248,0.00041155,7]
[393875674,1763060961526,-167.19,0.00041156,30]
[393875675,1763060961548,-178.23,0.000412,14]
[393875676,1763060961569,-150.25,0.00041213,120]
[393875677,1763060961590,-150.25,0.00041313,120]
[393875678,1763060961611,-150.25,0.00041413,120]
[393875679,1763060961630,-167.19,0.0004143,30]
[393875680,1763060961650,-150.25,0.00041513,120]
[393875681,1763060961670,-150.25,0.00041613,120]
[393875682,1763060961689,-167.19047431,0.00041704,30]
[393875683,1763060961709,-150.41,0.00041713,120]
[393875684,1763060961728,-212.60755573,0.0004176,2]
[393875685,1763060961750,-153.766878,0.00042791,3]
[393875686,1763060961771,-4783.4763,0.0004322,30]
[393875687,1763060961791,-225.53286956,0.00043226,2]
[393875688,1763060961810,-500.0,0.00043825,10]
[393875689,1763060961829,-294.42584774,0.00043835,120]
[393875690,1763060961850,-502.13630347,0.00043841,10]
[393875691,1763060961869,-501.82991833,0.00044072,10]
[393875692,1763060961888,-503.81842558,0.00044072,10]
[393875693,1763060961907,-500.0,0.00044072,10]
[393875694,1763060961927,-500.0,0.00044072,10]
[393875695,1763060961946,-527.12473407,0.00044072,10]
[393875696,1763060961965,-150.35031034,0.00044073,7]
[393875697,1763060961985,-1105.60117365,0.00044373,10]
[393875698,1763060962007,-16275.4041028,0.0004461,3]
[393875699,1763060962026,-1000.0,0.0004462,10]
[393875700,1763060962045,-1500.0,0.00045168,10]
[393875701,1763060962065,-2000.0,0.00045716,10]
[393875702,1763060962086,-263.643753,0.00046143,2]
[393875703,1763060962104,-1594.90459435,0.00046264,10]
[393875704,1763060962124,-173.17,0.00046695,30]
[393875705,1763060962143,-225.75840243,0.0004922,2]
[393875706,1763060962167,-179.92802879,0.00049458,40]
[393875707,1763060962192,-178.23,0.000495,14]
[393875708,1763060962217,-14009.41627354,0.0005,14]
[393875709,1763060962247,-639.89,0.00050126,10]
[393875710,1763060962269,-9766.0831776,0.00050136,14]
[393875711,1763060962293,-3000.0,0.00051,85]
[393875712,1763060962317,-3000.0,0.0005101,85]
[393875713,1763060962342,-3000.0,0.0005102,85]
[393875714,1763060962367,-3000.0,0.0005103,85]
[393875715,1763060962391,-16275.4041028,0.0005103,4]
[393875716,1763060962415,-3000.0,0.0005104,85]
[393875717,1763060962438,-3000.0,0.0005105,85]
[393875718,1763060962465,-3000.0,0.0005106,85]
[393875719,1763060962491,-4065.701731,0.0005107,85]
[393875720,1763060962516,-2672.44,0.000511,14]
[393875721,1763060962539,-263.643753,0.00052632,2]
[393875722,1763060962563,-151.0,0.00054795,2]
[393875723,1763060962585,-151.0,0.00054795,2]
[393875724,1763060962607,-198.0,0.00054795,2]
[393875725,1763060962631,-151.48695744,0.00054795,120]
[393875726,1763060962653,-500.0,0.00054795,120]
[393875727,1763060962675,-500.0,0.00054795,120]
[393875728,1763060962698,-506.0,0.00054795,120]
[393875729,1763060962718,-151.0,0.00054795,120]
[393875730,1763060962740,-198.0,0.00054795,120]
[393875731,1763060962763,-500.0,0.00054795,120]
[393875732,1763060962787,-500.0,0.00054795,120]
[393875733,1763060962813,-500.0,0.00054795,120]
[393875734,1763060962837,-500.0,0.00054795,120]
[393875735,1763060962861,-500.0,0.00054795,120]
[393875736,1763060962884,-500.0,0.00054795,120]
[393875737,1763060962908,-500.0,0.00054795,120]
[393875738,1763060962931,-500.0,0.00054795,120]
[393875739,1763060962956,-500.0,0.00054795,120]
[393875740,1763060962980,-500.0,0.00054795,120]
[393875741,1763060963005,-500.0,0.00054795,120]
[393875742,1763060963029,-500.0,0.00054795,120]
[393875743,1763060963053,-151.0,0.00054795,120]
[393875744,1763060963075,-151.0,0.00054795,120]
[393875745,1763060963099,-199.4880618,0.00054795,120]
[393875746,1763060963125,-153.24300351,0.00054795,120]
[393875747,1763060963150,-151.0,0.00054795,120]
[393875748,1763060963174,-209.97796445,0.00054795,120]
[393875749,1763060963197,-263.643753,0.0005912,2]
[393875750,1763060963223,-209.40437684,0.00063838,2]
[393875751,1763060963252,-3097.4541499,0.00063877,2]
[393875752,1763060963279,-217.15233878,0.00064386,2]
[393875753,1763060963305,-225.18697532,0.00064934,2]
[393875754,1763060963329,-233.51889341,0.00065482,2]
[393875755,1763060963354,-263.643753,0.00065609,2]
[393875756,1763060963376,-12334.49437787,0.000659,30]
[393875757,1763060963430,-3665.50562213,0.000659,30]
[393875758,1763060963458,-242.15909246,0.0006603,2]
[393875759,1763060963482,-251.11897888,0.00066578,2]
[393875760,1763060963511,-260.4103811,0.00067126,2]
[393875761,1763060963537,-16275.4041028,0.00067665,6]
[393875762,1763060963561,-270.0455652,0.00067674,2]
[393875763,1763060963585,-331.58,0.000677,30]
[393875764,1763060963742,328.95136658,0.00030876,2]
[393875765,1763060963776,328.95136658,0.00034558,2]
[393875766,1763060964315,328.95136658,0.00038239,2]
[393875767,1763060965077,259.09269648,0.00041921,2]
[393875768,1763060966094,-69.8586701,0.00041921,2]
[393875769,1763060966115,-329.28031794,0.00045602,2]
[393875770,1763060966135,-280.03725112,0.00068222,2]
[393875771,1763060966159,-290.39862941,0.0006877,2]
[393875772,1763060966180,-3000.0,0.00069,120]
[393875773,1763060966201,-3000.0,0.0006901,120]
[393875774,1763060966221,-3000.0,0.0006902,120]
[393875775,1763060966243,-3000.0,0.0006903,120]
[393875776,1763060966264,-4199.225317,0.0006904,120]
[393875777,1763060966284,-419.539,0.00069085,120]
[393875778,1763060966305,-178.23,0.000691,14]
[393875779,1763060966326,-301.1433787,0.00069318,2]
[393875780,1763060966346,-5000.0,0.0007,120]
[393875781,1763060966367,-413.0,0.00072085,120]
[393875782,1763060966390,-263.643753,0.00072098,120]
[393875783,1763060966414,-168.0,0.00073096,2]
[393875784,1763060966434,-5320.6263974,0.00074,120]
[393875785,1763060967109,-2612.65576692,0.00074,120]
[393875786,1763060967134,-168.0,0.00074173,2]
[393875787,1763060967157,-188.668,0.00074657,120]
[393875788,1763060967179,-168.0,0.00074886,2]
[393875789,1763060967202,-1532.7767838,0.00075,120]
[393875790,1763060970597,5000.0,0.00029,2]
[393875792,1763060992799,5000.0,0.00029,2]
[393875793,1763061015061,2456.32491237,0.00029,2]
[393875794,1763061015099,2543.67508763,0.00029,2]
[393875965,1763061037863,5000.0,0.00029,2]
[393875980,1763061038505,-318.9,0.00071542,2]
[393875989,1763061038616,-652.56909797,0.00071542,2]
[393875992,1763061038632,-250.0,0.00074999,120]
[393875994,1763061038643,-250.0,0.00074999,120]
[393875996,1763061038653,-250.0,0.00074999,120]
[393875998,1763061038664,-250.0,0.00074999,120]
[393876000,1763061038674,-250.0,0.00074999,120]
[393876002,1763061038685,-250.0,0.00074999,120]
[393876004,1763061038696,-151.0,0.00074999,120]
[393876006,1763061038706,-250.0,0.00074999,120]
[393876008,1763061038717,-250.0,0.00074999,120]
[393876009,1763061038726,-151.0,0.00074999,120]
[393876011,1763061038736,-156.587,0.00074999,120]
[393876013,1763061038745,-162.380719,0.00074999,120]
[393876015,1763061038755,-168.3888056,0.00074999,120]
[393876017,1763061038765,-174.61919141,0.00074999,120]
[393876019,1763061038775,-181.08010149,0.00074999,120]
[393876021,1763061038785,-187.78006525,0.00074999,120]
[393876024,1763061038804,-194.72792766,0.00074999,120]
[393876026,1763061038814,-201.93286099,0.00074999,120]
[393876027,1763061038824,-209.40437684,0.00074999,120]
[393876029,1763061038834,-217.15233878,0.00074999,120]
[393876031,1763061038844,-225.18697532,0.00074999,120]
[393876033,1763061038854,-233.51889341,0.00074999,120]
[393876035,1763061038865,-242.15909246,0.00074999,120]
[393876038,1763061038875,-251.11897888,0.00074999,120]
[393876040,1763061038885,-260.4103811,0.00074999,120]
[393876042,1763061038895,-270.0455652,0.00074999,120]
[393876043,1763061038906,-280.03725112,0.00074999,120]
[393876046,1763061038916,-290.39862941,0.00074999,120]
[393876047,1763061038926,-301.1433787,0.00074999,120]
[393876050,1763061038936,-3467.2232162,0.00075,120]
[393876052,1763061038946,-381.60540691,0.00075,120]
[393876054,1763061038955,-168.0,0.00075043,7]
[393876055,1763061038966,-168.0,0.00075053,120]
[393876057,1763061038976,-413.0,0.00075085,120]
[393876071,1763061038986,-155.70618526,0.00075307,6]
[393876073,1763061039114,-277.60080664,0.00075307,6]
[393876075,1763061039124,-5047.71940689,0.00075307,6]
[393876077,1763061039133,-168.0,0.00075491,30]
[393876079,1763061039143,-168.0,0.00075522,7]
[393876081,1763061039152,-168.0,0.00075837,30]
[393876083,1763061039162,-10000.0,0.00076,120]
[393876085,1763061039171,-168.0,0.00076386,120]
[393876087,1763061039180,-168.0,0.00076614,2]
[393876089,1763061039190,-500.0,0.00076712,120]
[393876091,1763061039199,-168.0,0.00076847,7]
[393876093,1763061039209,-168.0,0.00076883,2]
[393876095,1763061039220,-168.0,0.00076964,7]
[393876097,1763061039229,-9064.33334751,0.00077,120]
[393876100,1763061039242,-935.66665249,0.00077,120]
[393876102,1763061039250,-500.0,0.00077397,120]
[393876104,1763061039260,-1564.33334751,0.00078,120]
[393876170,1763061040978,-3e-08,0.00078,120]
[393876171,1763061041032,-8435.66665246,0.00078,120]
[393876172,1763061041044,-500.0,0.00078082,120]
[393876173,1763061041054,-413.0,0.00078085,120]
[393876174,1763061041063,-168.0,0.0007821,2]
[393876175,1763061041072,-168.0,0.00078335,2]
[393876176,1763061041081,-168.0,0.00078525,120]
[393876177,1763061041090,-263.643753,0.00078587,120]
[393876178,1763061041100,-4003.65338999,0.00078667,28]
[393876179,1763061041110,-16275.4041028,0.00078736,7]
[393876180,1763061041119,-500.0,0.00078767,120]
[393876181,1763061041129,-168.0,0.0007889,30]
[393876182,1763061041139,-9568.69835589,0.00079,120]
[393876230,1763061046761,-431.30164411,0.00079,120]
[393876231,1763061046771,-190.89926962,0.00079452,120]
[393876232,1763061046780,-500.0,0.00079452,120]
[393876233,1763061046790,-500.0,0.00079452,120]
[393876234,1763061046802,-67.04709798,0.00079452,120]
[393876235,1763061046813,-432.95290202,0.00079452,120]
[393876236,1763061046822,-500.0,0.00079452,120]
[393876237,1763061046831,-500.0,0.00079452,120]
[393876238,1763061046840,-500.0,0.00079452,120]
[393876239,1763061046849,-500.0,0.00079452,120]
[393876240,1763061046858,-500.0,0.00079452,120]
[393876241,1763061046868,-500.0,0.00079452,120]
[393876242,1763061046877,-500.0,0.00079452,120]
[393876243,1763061046887,-500.0,0.00079452,120]
[393876244,1763061046897,-500.0,0.00079452,120]
[393876245,1763061046906,-500.0,0.00079452,120]
[393876246,1763061046915,-500.0,0.00079452,120]
[393876247,1763061046925,-500.0,0.00079452,120]
[393876248,1763061046934,-500.0,0.00079452,120]
[393876249,1763061046943,-500.0,0.00079452,120]
[393876250,1763061046953,-500.0,0.00079452,120]
[393876251,1763061046962,-500.0,0.00079452,120]
[393876252,1763061046971,-500.0,0.00079452,120]
[393876253,1763061046981,-500.0,0.00079452,120]
[393876254,1763061046990,-500.0,0.00079452,120]
[393876255,1763061046999,-500.0,0.00079452,120]
[393876256,1763061047010,-255.39,0.00079452,120]
[393876257,1763061047019,-277.45986284,0.00079452,120]
[393876258,1763061047029,-500.0,0.00079452,120]
[393876260,1763061047038,-233.57129123,0.00079452,120]
[393876262,1763061047048,-408.32676093,0.00079452,120]
[393876263,1763061047057,-322.81114224,0.00079452,120]
[393876264,1763061047066,-489.99119829,0.00079452,120]
[393876265,1763061047076,-341.14468068,0.00079452,120]
[393876266,1763061047085,-428.17596672,0.00079452,120]
[393876267,1763061047095,-168.0,0.0007949,2]
[393876268,1763061047104,-275.72970307,0.0007956,2]
[393876269,1763061047113,-496.31346552,0.0007956,2]
[393876270,1763061047124,-334.35079331,0.0007956,2]
[393876271,1763061047133,-601.83142795,0.0007956,2]
[393876272,1763061047142,-882.33504981,0.0007956,2]
[393876273,1763061047151,-491.58476176,0.0007956,2]
[393876274,1763061047161,-884.85257116,0.0007956,2]
[393876275,1763061047170,-1069.92253858,0.0007956,2]
[393876276,1763061047179,-1573.07123762,0.0007956,2]
[393876277,1763061047188,-168.0,0.0007959,7]
[393876278,1763061047197,-168.0,0.000797,7]
[393876279,1763061047207,-153.766878,0.00079794,20]
[393876280,1763061047216,-175.17,0.000798,30]
[393876281,1763061047226,-161.91423094,0.0007989,7]
[393876282,1763061047240,-444.40811091,0.0007989,7]
[393876283,1763061047252,-31944.48586375,0.0007989,7]
[393876284,1763061047261,-257.16,0.0007989,10]
[393876285,1763061047271,-500.0,0.00079899,120]
[393876286,1763061047280,-500.0,0.00079899,120]
[393876287,1763061047290,-500.0,0.00079899,120]
[393876288,1763061047300,-500.0,0.00079899,120]
[393876289,1763061047310,-500.0,0.00079899,120]
[393876290,1763061047319,-500.32523168,0.00079899,120]
[393876291,1763061047329,-77731.06523347,0.000799,120]
[393876292,1763061047338,-156.08,0.000799,14]
[393876293,1763061047347,-1000.0,0.0008,120]
[393876294,1763061047356,-5000.0,0.0008,120]
[393876295,1763061047366,-10000.0,0.0008,120]
[393876296,1763061047376,-500.0,0.00080136,120]
[393876297,1763061047385,-168.0,0.00080176,120]
[393876298,1763061047394,-3117.6100518,0.0008045,9]
[393876299,1763061047403,-2357.95,0.000805,14]
[393876300,1763061047412,-168.0,0.00080621,7]
[393876301,1763061047421,-168.0,0.00080683,2]
[393876302,1763061047430,-500.0,0.00080821,120]
[393876303,1763061047440,-5419.91779998,0.00081,120]
[393876304,1763061047448,-500.0,0.00081506,120]
[393876305,1763061047458,-32550.8082056,0.0008189,8]
[393876306,1763061047467,-88888.0,0.000819,120]
[393876307,1763061047477,-20157.2407881,0.000819,120]
[393876308,1763061047489,-32550.8082056,0.0008199,8]
[393876309,1763061047499,-10000.0,0.00082,120]
[393876310,1763061047507,-4000.0,0.00082,120]
[393876311,1763061047517,-4000.0,0.00082,120]
[393876312,1763061047527,-4000.0,0.00082,120]
[393876313,1763061047536,-4000.0,0.00082,120]
[393876314,1763061047545,-4000.0,0.00082,120]
[393876315,1763061047555,-4000.0,0.00082,120]
[393876316,1763061047567,-4000.0,0.00082,120]
[393876317,1763061047575,-4000.0,0.00082,120]
[393876318,1763061047585,-4000.0,0.00082,120]
[393876319,1763061047594,-4000.0,0.00082,120]
[393876320,1763061047603,-4000.0,0.00082,120]
[393876321,1763061047613,-4000.0,0.00082,120]
[393876322,1763061047622,-4000.0,0.00082,120]
[393876323,1763061047631,-4000.0,0.00082,120]
[393876324,1763061047640,-4000.0,0.00082,120]
[393876325,1763061047649,-4000.0,0.00082,120]
[393876326,1763061047658,-4000.0,0.00082,120]
[393876327,1763061047667,-4000.0,0.00082,120]
[393876328,1763061047676,-4000.0,0.00082,120]
[393876329,1763061047686,-4000.0,0.00082,120]
[393876330,1763061047695,-378.9758365,0.00082,120]
[393876331,1763061047705,-500.0,0.00082191,120]
[393876332,1763061047714,-188.80985975,0.00082566,6]
[393876333,1763061047723,-4325.01024133,0.00082566,6]
[393876334,1763061047732,-500.0,0.000828,120]
[393876335,1763061047742,-487.99,0.000828,60]
[393876336,1763061047751,-616.34988704,0.00082811,6]
[393876337,1763061047761,-500.0,0.00082876,120]
[393876338,1763061047771,-2318.99513609,0.00082922,6]
[393876339,1763061047780,-10000.0,0.00083,120]
[393876340,1763061047789,-500.0,0.00083561,120]
[393876341,1763061047800,-500.0,0.00083595,120]
[393876342,1763061047810,-500.0,0.00083595,120]
[393876343,1763061047819,-1000.0,0.00083889,120]
[393876344,1763061047828,-500.0,0.00083896,120]
[393876345,1763061047837,-3426.99594827,0.0008398,120]
[393876346,1763061047847,-287.17784525,0.00084,14]
[393876347,1763061047856,-156.08,0.00084,30]
[393876348,1763061047865,-500.0,0.00084246,120]
[393876349,1763061047875,-200.0,0.0008425,120]
[393876350,1763061047884,-565.34780213,0.00084319,120]
[393876351,1763061047893,-5940.06428286,0.00084344,2]
[393876352,1763061047904,-40000.0,0.0008438,120]
[393876353,1763061047913,-20000.000001,0.0008438,120]
[393876354,1763061047922,-40000.0,0.0008439,120]
[393876355,1763061047932,-2000.0,0.000844,120]
[393876356,1763061047941,-1799.913924,0.000844,120]
[393876357,1763061047952,-150.0,0.000844,2]
[393876358,1763061047961,-1656.750092,0.000844,120]
[393876359,1763061047973,-16275.4041028,0.00084424,9]
[393876360,1763061047990,-4000.0,0.0008443,120]
[393876361,1763061048000,-4000.0,0.0008443,120]
[393876362,1763061048009,-4000.0,0.0008443,120]
[393876363,1763061048019,-4000.0,0.0008443,120]
[393876364,1763061048029,-3744.11364459,0.0008443,120]
[393876365,1763061048044,-255.88635541,0.0008443,120]
[393876366,1763061048056,-4000.0,0.0008443,120]
[393876367,1763061048150,-4000.0,0.0008443,120]
[393876368,1763061048161,-4000.0,0.0008443,120]
[393876369,1763061048170,-4000.0,0.0008443,120]
[393876370,1763061048180,-4000.0,0.0008443,120]
[393876371,1763061048191,-48826.2123083,0.00084434,9]
[393876372,1763061048200,-153.766878,0.0008444,2]
[393876373,1763061048210,-1000.0,0.00084441,120]
[393876374,1763061048219,-160.0,0.00084442,3]
[393876375,1763061048229,-319.16384483,0.00084442,5]
[393876376,1763061048239,-250.0,0.00084443,30]
[393876377,1763061048248,-3829.66973001,0.00084444,120]
[393876378,1763061048258,-374.44488232,0.00084444,30]
[393876379,1763061048267,-335.2650294,0.00084444,30]
[393876380,1763061048277,-52573.26592387,0.00084444,30]
[393876381,1763061048290,-24624.00922274,0.00084444,30]
[393876382,1763061048878,-115279.6716358,0.00084444,30]
[393876383,1763061048889,-9820.0,0.00084444,30]
[393876384,1763061060411,5000.0,0.00029,2]
[393876406,1763061082796,5000.0,0.00029,2]
[393876439,1763061104924,5000.0,0.00029,2]
[393876447,1763061127571,2456.32491237,0.00029,2]
[393876449,1763061135315,418.66929077,0.00028,2]
[393876450,1763061212343,150.0,0.0002589,2]
[393876451,1763061212749,177.0,0.0002789,2]
[393876493,1763061265535,311.42,0.0003288,120]
[393876556,1763061524591,238.69006048,0.0002589,2]
[393876565,1763061705817,5000.0,0.00028,2]
[393876566,1763061728569,5000.0,0.00028,2]
[393876568,1763061750659,5000.0,0.00028,2]
[393876569,1763061772731,1612.72533455,0.00028,2]
[393876571,1763061793660,226.36626951,0.00025243,2]
[393876582,1763061947155,-150.0,0.00028837,2]
[393876583,1763061947178,-150.0,0.00031458,2]
[393876584,1763061947199,-563.60920406,0.000329,120]
[393876585,1763061947218,-563.60920406,0.000339,120]
[393876586,1763061947249,-150.0,0.0003408,2]
[393876587,1763061947269,-563.60920406,0.000349,120]
[393876588,1763061947297,-260.45196039,0.00035616,2]
[393876589,1763061947322,-909.41456181,0.0003587,7]
[393876614,1763062026090,-150.0,0.00028905,2]
[393876615,1763062026110,-225.44368163,0.000329,120]
[393876616,1763062026130,-161.48865394,0.00033826,2]
[393876618,1763062036119,-343.13602926,0.00033826,2]
[393876619,1763062036140,-111.80436234,0.000339,120]
[393876620,1763062039155,-113.63931929,0.000339,120]
[393876621,1763062039176,-225.44368163,0.000349,120]
[393876622,1763062039199,-74.95686612,0.00035869,2]
[393876623,1763062046101,-228.78964125,0.00035869,2]
[393876624,1763062052146,-96.25349263,0.00035869,2]
[393876625,1763062052166,-157.61858228,0.0003587,7]
[393876627,1763062066179,12238.23910517,0.00018,2]
[393876628,1763062066205,9045.2454019,0.00018,2]
[393876631,1763062090833,286.6678497,0.000125,2]
[393876641,1763062107482,50020.32866022,0.00039567,120]
[393876642,1763062108698,10404.78017191,0.00017,2]
[393876643,1763062111437,447.345973,0.00015,2]
[393876648,1763062114035,4715.10081071,0.00018,2]
[393876658,1763062119860,100.85979278,0.0002465,2]
[393876659,1763062119888,8553.20908146,0.0002465,2]
[393876666,1763062120446,1933.37835984,0.0001,2]
[393876667,1763062120474,25066.61164016,0.0001,2]
[393876668,1763062120988,2379.44058144,0.0001,2]
[393876669,1763062121848,12254.97425345,0.00024142,2]
[393876677,1763062145324,-14338.73792167,0.0003,2]
[393876678,1763062145344,-909.64,0.0003299,10]
[393876679,1763062145365,-206.49,0.0003299,3]
[393876680,1763062145389,-758.04,0.0003299,10]
[393876681,1763062145408,-619.52,0.0003299,3]
[393876682,1763062145429,-631.7,0.0003299,10]
[393876683,1763062145448,-60253.08533284,0.00033,10]
[393876684,1763062145468,-15717.37148549,0.00033,2]
[393876686,1763062150078,-42942.92478,0.00033,2]
[393876690,1763062157118,-3503.19671618,0.000329,2]
[393876691,1763062157141,-2808.03914183,0.00033,2]
[393876692,1763062161078,-27044.26197046,0.00033,2]
[393876693,1763062161098,-7984.05377809,0.00033,30]
[393876694,1763062161119,-156.8,0.00033,7]
[393876695,1763062161144,-3433.52040382,0.0003301,3]
[393876696,1763062161166,-337.17640039,0.00033261,7]
[393876697,1763062161190,-645.2974401,0.00034022,30]
[393876698,1763062161212,-412.98,0.0003436,3]
[393876699,1763062161231,-10721.07276464,0.00035,2]
[393876700,1763062161252,-658.04106808,0.00035,2]
[393876701,1763062161271,-215.69762192,0.00035,30]
[393876702,1763062161291,-708.34,0.00035858,10]
[393876703,1763062161312,-9305.91460023,0.0003586,3]
[393876704,1763062161332,-500.0,0.00035868,15]
[393876705,1763062161353,-500.0,0.00035868,15]
[393876706,1763062161374,-500.0,0.00035868,15]
[393876707,1763062161398,-500.0,0.00035868,15]
[393876708,1763062161419,-500.0,0.00035868,15]
[393876709,1763062161445,-500.0,0.00035868,7]
[393876710,1763062161467,-500.0,0.00035868,15]
[393876711,1763062161488,-500.0,0.00035868,15]
[393876712,1763062161510,-500.0,0.00035868,15]
[393876713,1763062161531,-500.0,0.00035868,15]
[393876714,1763062161556,-500.0,0.00035868,7]
[393876715,1763062161578,-216.08692932,0.00035868,15]
[393876716,1763062161600,-643.88043102,0.00035868,15]
[393876717,1763062161621,-500.0,0.00035868,15]
[393876718,1763062161644,-500.0,0.00035868,7]
[393876719,1763062161664,-436.8530867,0.00035868,15]
[393876720,1763062161686,-500.0,0.00035868,15]
[393876721,1763062161710,-500.0,0.00035868,7]
[393876722,1763062161731,-500.0,0.00035868,15]
[393876723,1763062161752,-500.0,0.00035868,15]
[393876724,1763062161775,-500.0,0.00035868,7]
[393876725,1763062161801,-500.0,0.00035868,7]
[393876726,1763062161827,-500.0,0.00035868,15]
[393876727,1763062161853,-250.0,0.00035868,15]
[393876728,1763062161878,-500.0,0.00035868,7]
[393876729,1763062161908,-500.0,0.00035868,7]
[393876730,1763062161933,-500.0,0.00035868,7]
[393876731,1763062161956,-500.0,0.00035868,7]
[393876732,1763062161981,-500.0,0.00035868,7]
[393876733,1763062162005,-500.0,0.00035868,7]
[393876734,1763062162027,-500.0,0.00035868,7]
[393876735,1763062162051,-500.0,0.00035868,7]
[393876736,1763062162075,-500.0,0.00035868,7]
[393876737,1763062162098,-500.0,0.00035868,7]
[393876738,1763062162121,-500.0,0.00035868,7]
[393876739,1763062162145,-500.0,0.00035868,7]
[393876740,1763062162169,-500.0,0.00035868,7]
[393876741,1763062162192,-174.73003076,0.00035868,7]
[393876742,1763062162214,-500.0,0.00035868,7]
[393876743,1763062162237,-500.0,0.00035868,7]
[393876744,1763062162260,-350.26817447,0.00035868,7]
[393876745,1763062163220,-149.73182553,0.00035868,7]
[393876746,1763062163247,-500.0,0.00035868,7]
[393876747,1763062163272,-500.0,0.00035868,7]
[393876748,1763062163296,-500.0,0.00035868,7]
[393876749,1763062163320,-500.0,0.00035868,7]
[393876750,1763062163345,-500.0,0.00035868,7]
[393876751,1763062163371,-500.0,0.00035868,7]
[393876752,1763062163397,-500.0,0.00035868,7]
[393876753,1763062163424,-500.0,0.00035868,7]
[393876754,1763062163450,-500.0,0.00035868,7]
[393876755,1763062163475,-500.0,0.00035868,7]
[393876756,1763062163501,-500.0,0.00035868,7]
[393876757,1763062163526,-434.28070514,0.00035868,7]
[393876759,1763062169095,-65.71929486,0.00035868,7]
[393876760,1763062169119,-500.0,0.00035868,7]
[393876761,1763062169144,-500.0,0.00035868,7]
[393876762,1763062169167,-500.0,0.00035868,7]
[393876763,1763062169189,-500.0,0.00035868,7]
[393876764,1763062169214,-500.0,0.00035868,7]
[393876765,1763062169236,-500.0,0.00035868,7]
[393876766,1763062169258,-500.0,0.00035868,7]
[393876767,1763062169280,-500.0,0.00035868,7]
[393876768,1763062169301,-500.0,0.00035868,7]
[393876769,1763062169323,-500.0,0.00035868,7]
[393876770,1763062169345,-500.0,0.00035868,7]
[393876771,1763062169368,-500.0,0.00035868,7]
[393876772,1763062169392,-500.0,0.00035868,7]
[393876773,1763062169413,-500.0,0.00035868,7]
[393876774,1763062169436,-500.0,0.00035868,7]
[393876775,1763062169458,-500.0,0.00035868,7]
[393876776,1763062169480,-500.0,0.00035868,7]
[393876777,1763062169502,-500.0,0.00035868,7]
[393876778,1763062169523,-500.0,0.00035868,7]